bitfinex-derivatives/quotes_ETHF0:USTF0_20250602
["timestamp","ask_amount","ask_price","bid_price","bid_amount"]
[1748865007199,28.38152,2483.3,2483.2,7.99e-06]
[1748865009112,33.38152,2483.3,2483.2,7.99e-06]
[1748865009604,36.59757005,2483.3,2483.2,7.99e-06]
[1748865011108,33.38152,2483.3,2483.2,7.99e-06]
[1748865011307,36.59352998,2483.3,2483.2,7.99e-06]
[1748865012602,0.80515,2482.9,2482.8,3.57e-06]
[1748865012805,8.16795,2482.9,2482.8,3.57e-06]
[1748865013607,28.28855,2482.9,2482.8,3.57e-06]
[1748865014701,28.28155,2482.9,2482.8,3.57e-06]
[1748865017407,33.28155,2482.9,2482.8,3.57e-06]
[1748865017911,28.31455,2482.9,2482.8,3.57e-06]
[1748865019313,28.30955,2482.9,2482.8,3.57e-06]
[1748865019506,5.32755,2482.9,2482.8,3.57e-06]
[1748865019706,28.30755,2482.9,2482.8,3.57e-06]
[1748865019913,28.30755,2482.9,2482.8,0.07070146]
[1748865020710,33.30755,2482.9,2482.8,1.46e-06]
[1748865021307,36.51878134,2482.9,2482.8,1.46e-06]
[1748865021507,0.80522,2482.7,2482.6,7.04e-06]
[1748865022318,6.03092,2482.7,2482.6,7.04e-06]
[1748865022613,1.03092,2482.7,2482.6,7.04e-06]
[1748865022806,6.36005713,2482.7,2482.6,7.04e-06]
[1748865023414,1.36005713,2482.7,2482.6,7.04e-06]
[1748865024510,21.52015713,2482.7,2482.6,7.04e-06]
[1748865024906,2.35602,2482.7,2482.6,7.04e-06]
[1748865025110,25.34402,2482.7,2482.6,7.04e-06]
[1748865026010,5.18692,2482.7,2482.6,7.04e-06]
[1748865026221,24.02592,2482.7,2482.6,7.04e-06]
[1748865026411,1.03092,2482.7,2482.6,7.04e-06]
[1748865026712,19.86792,2482.7,2482.6,7.04e-06]
[1748865028212,1.03092,2482.7,2482.6,7.04e-06]
[1748865028414,19.85792,2482.7,2482.6,7.04e-06]
[1748865032423,1.03092,2482.7,2482.6,7.04e-06]
[1748865033013,19.84492,2482.7,2482.6,7.04e-06]
[1748865033417,1.03092,2482.7,2482.6,7.04e-06]
[1748865034115,19.83792,2482.7,2482.6,6.27682904]
[1748865034318,19.83892,2482.7,2482.6,6.27682904]
[1748865034520,19.83892,2482.7,2482.6,7.65712904]
[1748865034721,19.84292,2482.7,2482.6,7.65712904]
[1748865034921,0.2257,2482.7,2482.6,7.65712904]
[1748865035132,1.03092,2482.7,2482.6,7.65712904]
[1748865035514,1.03092,2482.7,2482.6,8.93351229]
[1748865035714,1.03092,2482.7,2482.6,7.65669029]
[1748865036723,0.2257,2482.7,2482.6,11.66974029]
[1748865037022,0.80518,2482.9,2482.8,0.80519]
[1748865037226,0.80519,2482.8,2482.7,2.18289]
[1748865037430,5.22039,2483.3,2482.7,2.65370531]
[1748865037633,0.80514,2483.0,2482.9,0.80513]
[1748865037924,0.80514,2483.0,2482.9,6.55320531]
[1748865038125,0.80514,2483.0,2482.9,11.55320531]
[1748865042931,0.80514,2483.0,2482.9,9.14779188]
[1748865043123,0.80514,2483.0,2482.9,11.55044188]
[1748865043327,0.80514,2483.0,2482.9,11.55014793]
[1748865043628,0.80514,2483.0,2482.9,12.35529793]
[1748865044329,0.80511,2483.1,2483.0,0.8051]
[1748865044533,0.80511,2483.1,2483.0,2.1215]
[1748865044735,0.80506,2483.3,2483.2,0.80504]
[1748865044924,19.56906,2483.3,2483.2,3.2078]
[1748865045328,19.56906,2483.3,2483.2,5.1354]
[1748865045529,19.56906,2483.3,2483.2,5.94046]
[1748865045934,0.80506,2483.3,2483.2,5.94046]
[1748865046234,19.56006,2483.3,2483.2,5.94046]
[1748865047136,19.55506,2483.3,2483.2,5.94046]
[1748865047325,0.80506,2483.3,2483.2,5.94046]
[1748865047635,19.55306,2483.3,2483.2,5.94046]
[1748865048034,0.80506,2483.3,2483.2,5.94046]
[1748865048238,19.54902,2483.4,2483.3,0.80499]
[1748865048429,19.54902,2483.4,2483.3,2.17549]
[1748865048629,18.744,2483.4,2483.3,2.17549]
[1748865048925,19.54899,2483.4,2483.3,2.17549]
[1748865051937,0.80499,2483.4,2483.3,2.17549]
[1748865054240,0.80499,2483.4,2483.3,1.3705]
[1748865054436,2.01262,2483.3,2482.9,0.6917]
[1748865054641,0.80512,2483.0,2482.9,0.6917]
[1748865055037,3.3118,2483.2,2482.8,3.2078]
[1748865055038,0.80515,2482.9,2482.8,3.2078]
[1748865055232,2.10425,2482.9,2482.8,4.48014246]
[1748865055742,2.10425,2482.9,2482.8,3.2078]
[1748865056540,1.2991,2482.9,2482.8,4.01299]
[1748865057238,1.2991,2482.9,2482.8,5.28620318]
[1748865057633,2.10425,2482.9,2482.8,5.28620318]
[1748865059034,2.10425,2482.9,2482.8,4.01299]
[1748865059230,2.10425,2482.9,2482.8,5.28687493]
[1748865059429,1.2991,2482.9,2482.8,5.28687493]
[1748865059642,20.0151,2482.9,2482.8,5.28687493]
[1748865059846,20.82025,2482.9,2482.8,5.28687493]
[1748865060035,20.82025,2482.9,2482.8,4.48168493]
[1748865060340,20.82025,2482.9,2482.8,4.48248898]
[1748865060843,20.82025,2482.9,2482.8,5.28767898]
[1748865061036,20.82025,2482.9,2482.8,4.48248898]
[1748865061234,2.69557,2483.1,2482.8,4.48248898]
[1748865061235,0.6828,2483.1,2482.9,0.80512]
[1748865061536,0.80515,2482.9,2482.8,3.2078]
[1748865061736,0.80522,2482.7,2482.6,7.04e-06]
[1748865062137,5.80522,2482.7,2482.6,7.04e-06]
[1748865062439,7.19522,2482.7,2482.6,7.04e-06]
[1748865063638,0.80558,2481.6,2481.5,3.2078]
[1748865064237,0.80558,2481.6,2481.5,4.48318851]
[1748865064445,0.6041,2481.6,2481.5,5.28879851]
[1748865065039,0.6041,2481.6,2481.5,4.01341]
[1748865066041,1.40968,2481.6,2481.5,3.2078]
[1748865066446,2.69098,2481.6,2481.5,3.2078]
[1748865066843,1.8854,2481.6,2481.3,1.49090558]
[1748865067145,0.80563,2481.5,2481.4,3.2078]
[1748865067343,0.80563,2481.5,2481.4,4.01344]
[1748865067739,0.80563,2481.5,2481.4,3.2078]
[1748865068835,1.40969,2481.6,2481.4,3.2078]
[1748865069039,0.80561,2481.5,2481.4,3.2078]
[1748865069440,2.10601,2481.5,2481.4,3.2078]
[1748865069646,0.80564,2481.4,2481.3,0.68524558]
[1748865069947,2.06564,2481.4,2481.3,0.68524558]
[1748865070246,2.06564,2481.4,2481.3,0.00604558]
[1748865070439,2.06564,2481.4,2481.3,0.81171558]
[1748865070743,0.80564,2481.4,2481.3,0.81171558]
[1748865071847,0.80564,2481.4,2481.3,0.00604558]
[1748865072142,0.80564,2481.4,2481.3,0.81171558]
[1748865072645,0.80564,2481.4,2481.3,0.00604558]
[1748865075343,1.3401,2481.5,2481.4,0.80564]
[1748865075547,0.6041,2481.6,2481.5,0.80561]
[1748865075846,19.3891,2481.6,2481.5,0.80561]
[1748865076239,20.19468,2481.6,2481.5,0.80561]
[1748865076545,0.80561,2481.5,2481.4,4.5486]
[1748865076743,0.80561,2481.5,2481.4,5.35424]
[1748865077047,0.80561,2481.5,2481.4,4.5486]
[1748865077548,0.80561,2481.5,2481.4,5.35424]
[1748865078746,2.13071,2481.5,2481.4,4.5486]
[1748865079045,2.13071,2481.5,2481.4,5.35424]
[1748865080850,2.73501,2481.5,2481.4,5.35424]
[1748865081053,20.18191,2481.5,2481.4,5.35424]
[1748865083148,20.17091,2481.5,2481.4,5.35424]
[1748865084052,20.17091,2481.5,2481.4,4.5486]
[1748865084650,20.17091,2481.5,2481.4,5.35424]
[1748865085248,20.17091,2481.5,2481.4,4.5486]
[1748865085652,20.17091,2481.5,2481.4,5.35424]
[1748865086651,20.17091,2481.5,2481.4,4.5486]
[1748865086852,20.17091,2481.5,2481.3,5.58e-06]
[1748865086853,0.80564,2481.4,2481.3,5.58e-06]
[1748865087053,0.8058,2480.9,2480.8,1.20079164]
[1748865087550,0.8059,2480.6,2480.5,3.2078]
[1748865087756,19.5819,2480.6,2480.5,3.2078]
[1748865087959,0.80596,2480.4,2480.3,0.00604558]
[1748865088146,5.80596,2480.4,2480.3,0.00604558]
[1748865088350,19.60096,2480.4,2480.3,0.00604558]
[1748865088754,20.88636,2480.4,2480.3,0.00604558]
[1748865089150,25.88636,2480.4,2480.3,0.00604558]
[1748865089550,0.80613,2479.9,2479.8,3.2078]
[1748865090061,0.80625,2479.6,2479.5,3.2078]
[1748865090264,19.61325,2479.6,2479.5,4.48440748]
[1748865090760,18.807,2479.6,2479.5,4.48440748]
[1748865091058,0.00604558,2479.8,2479.6,0.80623]
[1748865091264,0.00604558,2479.8,2479.7,1.3937]
[1748865091450,19.61420558,2479.8,2479.7,1.3937]
[1748865092054,0.80623,2479.6,2479.5,3.2078]
[1748865092250,18.80804558,2479.8,2479.5,3.2078]
[1748865092451,0.80623,2479.6,2479.5,3.2078]
[1748865095360,0.80623,2479.6,2479.3,0.00604558]
[1748865095361,0.80629,2479.4,2479.3,0.00604558]
[1748865095561,4.01409,2479.4,2479.3,0.00604558]
[1748865096264,5.37019,2479.4,2479.3,0.00604558]
[1748865097866,24.17319,2479.4,2479.3,0.00604558]
[1748865098070,24.17219,2479.4,2479.3,0.00604558]
[1748865098480,1.3561,2479.4,2479.3,0.00604558]
[1748865098773,0.80627,2479.5,2479.3,0.00604558]
[1748865098980,0.80627,2479.5,2479.4,0.80628]
[1748865099183,19.61827,2479.5,2479.4,0.80628]
[1748865099372,19.61827,2479.5,2479.4,2.17798]
[1748865099681,19.61827,2479.5,2479.4,1.3717]
[1748865100679,0.00604558,2479.8,2479.4,1.3717]
[1748865100977,0.80626,2479.5,2479.4,1.3717]
[1748865101672,0.80629,2479.4,2479.3,1.34874558]
[1748865101879,19.60529,2479.4,2479.3,1.34874558]
[1748865103282,0.6049,2479.5,2479.4,0.80629]
[1748865103979,0.6049,2479.5,2479.4,2.12839]
[1748865105285,0.00604558,2479.8,2479.7,0.80619]
[1748865105479,0.81220558,2479.8,2479.7,4.01399]
[1748865107377,0.00604558,2479.8,2479.7,4.01399]
[1748865107783,0.81220558,2479.8,2479.7,4.01399]
[1748865107984,0.00604558,2479.8,2479.7,8.15399]
[1748865108184,0.81220558,2479.8,2479.7,8.15399]
[1748865108389,0.00604558,2479.8,2479.7,8.15399]
[1748865108784,0.81220558,2479.8,2479.7,8.15399]
[1748865109084,0.81220558,2479.8,2479.7,7.3478]
[1748865109287,0.81220558,2479.8,2479.7,4.94619]
[1748865110487,0.81220558,2479.8,2479.7,0.80619]
[1748865110687,0.00604558,2479.8,2479.4,9.36352]
[1748865110883,0.80629,2479.4,2479.3,0.00604558]
[1748865111383,19.64529,2479.4,2479.3,0.00604558]
[1748865111791,0.80629,2479.4,2479.3,0.00604558]
[1748865112087,19.64429,2479.4,2479.3,4.02014558]
[1748865112278,3.9066,2479.7,2479.3,3.21384558]
[1748865112482,0.80629,2479.5,2479.4,0.80627]
[1748865112682,19.64229,2479.5,2479.4,2.11657]
[1748865112985,19.64026,2479.5,2479.4,2.11657]
[1748865113182,0.80625,2479.6,2479.5,0.80623]
[1748865113380,19.64125,2479.6,2479.5,0.80623]
[1748865113989,0.80626,2479.5,2479.4,2.11658]
[1748865114192,0.80626,2479.5,2479.4,1.3103]
[1748865115088,0.80629,2479.4,2479.3,7.35384558]
[1748865115487,0.80629,2479.4,2479.3,3.21384558]
[1748865117687,0.80629,2479.4,2479.3,0.00604558]
[1748865118491,19.62729,2479.4,2479.3,0.00604558]
[1748865121097,0.80629,2479.4,2479.3,0.00604558]
[1748865121397,19.61829,2479.4,2479.3,0.00604558]
[1748865122494,0.80629,2479.4,2479.3,0.00604558]
[1748865122694,19.61229,2479.4,2479.3,0.00604558]
[1748865122915,19.61229,2479.4,2479.3,1.27174413]
[1748865123396,19.60829,2479.4,2479.3,1.27174413]
[1748865124093,0.00604558,2479.8,2479.3,4.47954413]
[1748865124297,0.80628,2479.5,2479.4,3.21609855]
[1748865124899,0.80628,2479.5,2479.4,4.02238855]
[1748865125094,19.61028,2479.5,2479.4,4.02238855]
[1748865125297,19.61028,2479.5,2479.4,3.21609855]
[1748865125899,19.61028,2479.5,2479.4,2.75669]
[1748865126093,19.61028,2479.5,2479.4,3.21602894]
[1748865126293,19.61028,2479.5,2479.4,4.02231894]
[1748865126596,0.80626,2479.6,2479.5,0.80624]
[1748865126899,0.80626,2479.6,2479.5,4.06436894]
[1748865126900,19.60126,2479.6,2479.5,4.06436894]
[1748865127099,19.60126,2479.6,2479.5,3.25812894]
[1748865127303,19.60126,2479.6,2479.5,4.06438894]
[1748865128194,0.80626,2479.6,2479.5,4.06438894]
[1748865129499,0.80626,2479.6,2479.5,5.27083566]
[1748865129799,4.01406,2479.6,2479.5,1.26562894]
[1748865130099,0.80629,2479.4,2479.3,1.21284341]
[1748865130409,0.80629,2479.4,2479.3,1.2720353]
[1748865131295,1.45209,2479.4,2479.3,1.2720353]
[1748865132402,1.45209,2479.4,2479.3,2.0783553]
[1748865132596,4.01404,2479.6,2479.3,3.2878453]
[1748865132802,2.11551,2479.7,2479.6,0.80623]
[1748865133093,20.1523,2479.7,2479.6,2.07210709]
[1748865133295,0.65184558,2479.8,2479.7,0.80619]
[1748865133493,19.49384558,2479.8,2479.6,0.8062]
[1748865133694,0.80619,2479.7,2479.6,0.8062]
[1748865133903,0.80619,2479.7,2479.6,2.07208019]
[1748865134088,0.80619,2479.7,2479.6,1.26588019]
[1748865134293,2.20209,2479.7,2479.6,1.26588019]
[1748865137206,0.80619,2479.7,2479.6,1.26588019]
[1748865137502,0.80619,2479.7,2479.6,3.26708019]
[1748865137697,0.80619,2479.7,2479.6,1.92524877]
[1748865138099,0.00604558,2479.8,2479.7,0.80619]
[1748865138297,0.00604558,2479.8,2479.7,7.57763877]
[1748865138501,0.81220558,2479.8,2479.7,8.78494839]
[1748865138696,0.81220558,2479.8,2479.7,7.97875839]
[1748865138901,0.81220558,2479.8,2479.7,2.47405839]
[1748865139202,0.81220558,2479.8,2479.7,1.26674877]
[1748865139903,0.00604558,2479.8,2479.7,5.28073877]
[1748865140101,0.00604558,2479.8,2479.7,6.58043877]
[1748865140402,0.00604558,2479.8,2479.7,8.175606]
[1748865141607,0.00604558,2479.8,2479.7,8.17542869]
[1748865142402,0.81220558,2479.8,2479.7,8.17542869]
[1748865143104,0.00604558,2479.8,2479.7,8.17542869]
[1748865143305,0.81220558,2479.8,2479.7,8.17542869]
[1748865143698,0.00604558,2479.8,2479.7,8.17542869]
[1748865144200,0.81220558,2479.8,2479.7,8.17542869]
[1748865144508,0.00604558,2479.8,2479.7,6.58026146]
[1748865144706,0.00604558,2479.8,2479.7,8.17542869]
[1748865145604,0.00604558,2479.8,2479.7,8.17420414]
[1748865146001,0.00604558,2479.8,2479.7,13.17420414]
[1748865146198,0.00604558,2479.8,2479.7,11.57903691]
[1748865146808,1.2721,2480.5,2480.3,0.80597]
[1748865147103,18.811,2480.5,2480.4,0.80597]
[1748865147301,19.61698,2480.5,2480.4,2.07072695]
[1748865147500,19.61698,2480.5,2480.4,1.26475695]
[1748865147703,0.806,2480.3,2480.2,1.60719652]
[1748865148005,0.80606,2480.1,2480.0,1.45178]
[1748865148209,0.80606,2480.1,2480.0,3.92065784]
[1748865148502,0.80606,2480.1,2480.0,1.2641668]
[1748865148907,2.11676,2480.1,2480.0,2.0702568]
[1748865149313,2.11676,2480.1,2480.0,2.07020269]
[1748865149803,2.11676,2480.1,2480.0,1.26411269]
[1748865150899,0.80606,2480.1,2480.0,2.07020269]
[1748865151108,19.60206,2480.1,2480.0,3.36920269]
[1748865151608,19.59906,2480.1,2480.0,3.36920269]
[1748865152112,19.59606,2480.1,2480.0,3.36920269]
[1748865152913,19.59606,2480.1,2480.0,2.07020269]
[1748865153203,20.99036,2480.1,2480.0,2.07020269]
[1748865153403,20.99036,2480.1,2480.0,2.07035013]
[1748865154613,2.20036,2480.1,2480.0,2.07035013]
[1748865154814,20.97836,2480.1,2480.0,2.07035013]
[1748865156210,20.97836,2480.1,2480.0,1.26426013]
[1748865156512,20.97836,2480.1,2480.0,2.07035013]
[1748865156901,2.20036,2480.1,2480.0,2.07035013]
[1748865157107,19.57306,2480.1,2480.0,2.07035013]
[1748865157413,20.93696,2480.1,2480.0,2.07081459]
[1748865158717,20.93696,2480.1,2480.0,1.26472459]
[1748865159806,20.93696,2480.1,2480.0,2.07081459]
[1748865160015,2.16996,2480.1,2480.0,2.07081459]
[1748865160213,20.92096,2480.1,2480.0,2.07081459]
[1748865161920,0.00604558,2480.5,2480.1,0.80606]
[1748865162222,0.80602,2480.3,2480.2,1.26472459]
[1748865162713,2.06782,2480.3,2480.2,2.07075459]
[1748865163109,20.81682,2480.3,2480.2,2.07075459]
[1748865165320,20.81682,2480.3,2480.2,1.2660408]
[1748865165614,20.81682,2480.3,2480.2,2.0720708]
[1748865166920,2.06782,2480.3,2480.2,2.0720708]
[1748865167121,20.80382,2480.3,2480.2,2.0727278]
[1748865168824,1.2618,2480.3,2480.2,2.0727278]
[1748865169126,0.00604558,2480.5,2480.4,0.80596]
[1748865169127,0.81200558,2480.5,2480.4,0.80596]
[1748865169422,19.53800558,2480.5,2480.4,2.07315641]
[1748865169723,19.54100558,2480.5,2480.4,2.07315641]
[1748865170125,19.54100558,2480.5,2480.4,1.26719641]
[1748865170717,19.53700558,2480.5,2480.4,1.26719641]
[1748865172021,0.81200558,2480.5,2480.4,2.07315641]
[1748865172223,19.52900558,2480.5,2480.4,2.07315641]
[1748865173327,19.52900558,2480.5,2480.4,2.071532]
[1748865173725,19.52200558,2480.5,2480.4,2.071532]
[1748865174230,0.00604558,2480.5,2480.4,2.071532]
[1748865174427,18.71204558,2480.5,2480.4,4.54772417]
[1748865175222,0.81197558,2480.5,2480.4,4.54772417]
[1748865175629,0.00604558,2480.5,2480.4,4.54772417]
[1748865176333,0.00604558,2480.5,2480.4,3.339832]
[1748865176638,0.00604558,2480.5,2480.4,4.54740121]
[1748865177129,0.00604558,2480.5,2480.4,3.339832]
[1748865177437,0.00604558,2480.5,2480.4,3.33950179]
[1748865178036,0.00604558,2480.5,2480.4,4.94912383]
[1748865181633,0.00604558,2480.5,2480.4,2.07120179]
[1748865181839,0.00604558,2480.5,2480.4,3.2775864]
[1748865182039,0.00604558,2480.5,2480.4,4.5658864]
[1748865182727,0.00604558,2480.5,2480.4,3.35950179]
[1748865183735,0.00604558,2480.5,2480.4,2.07012436]
[1748865183938,0.00604558,2480.5,2480.4,3.27675145]
[1748865184140,1.31184558,2480.5,2480.4,2.07012436]
[1748865187144,20.00984558,2480.5,2480.4,2.07012436]
[1748865187444,0.00604558,2480.5,2480.4,2.07012436]
[1748865187649,0.00604558,2480.5,2480.4,3.44644231]
[1748865188036,5.58e-06,2480.5,2480.4,3.44644231]
[1748865188242,5.58e-06,2480.5,2480.4,5.05606435]
[1748865191547,5.58e-06,2480.5,2480.4,2.41558204]
[1748865191856,5.58e-06,2480.5,2480.4,3.67835901]
[1748865194257,5.58e-06,2480.5,2480.4,5.01615901]
[1748865195655,5.58e-06,2480.5,2480.4,5.01532231]
[1748865196560,5.58e-06,2480.5,2480.4,3.40570027]
[1748865199754,5.58e-06,2480.5,2480.4,3.40609403]
[1748865200858,5.58e-06,2480.5,2480.4,5.01571607]
[1748865201063,5.58e-06,2480.5,2480.4,3.40609403]
[1748865201358,5.58e-06,2480.5,2480.4,5.8158654]
[1748865202560,5.58e-06,2480.5,2480.4,3.40609403]
[1748865202859,5.58e-06,2480.5,2480.4,8.40609403]
[1748865203262,2.0509,2481.4,2481.3,0.80567]
[1748865203557,3.21123134,2481.9,2481.8,0.80551]
[1748865203749,2.684,2482.0,2481.9,0.80548]
[1748865203949,25.0799,2482.0,2481.9,0.80548]
[1748865204360,20.0799,2482.0,2481.9,0.80548]
[1748865205057,1.3849,2482.0,2481.9,0.80548]
[1748865205858,0.6893,2482.0,2481.9,0.80548]
[1748865209469,19.3813,2482.0,2481.9,0.80548]
[1748865210262,0.6893,2482.0,2481.9,0.80548]
[1748865215073,1.49475,2482.0,2481.9,0.80548]
[1748865215670,0.6893,2482.0,2481.9,0.80548]
[1748865216365,1.49475,2482.0,2481.9,0.80548]
[1748865216869,2.0399,2482.0,2481.9,0.80548]
[1748865219568,18.69304558,2482.2,2482.1,0.80541]
[1748865220074,19.49842558,2482.2,2482.1,0.80541]
[1748865221971,18.69304558,2482.2,2482.1,0.80541]
[1748865222173,19.49842558,2482.2,2482.1,0.80541]
[1748865222377,20.81272558,2482.2,2482.1,0.80541]
[1748865222671,20.00734558,2482.2,2482.1,0.80541]
[1748865223169,20.00534558,2482.2,2482.1,0.80541]
[1748865224070,20.81072558,2482.2,2482.1,0.80541]
[1748865224272,20.00534558,2482.2,2482.1,0.80541]
[1748865224975,1.32034558,2482.2,2482.1,0.80541]
[1748865225472,20.00434558,2482.2,2482.1,0.80541]
[1748865227071,1.32034558,2482.2,2482.1,0.80541]
[1748865227271,20.00434558,2482.2,2482.1,0.80541]
[1748865228172,1.32034558,2482.2,2482.1,0.80541]
[1748865228478,0.00604558,2482.2,2482.1,0.80541]
[1748865229071,0.00604558,2482.2,2482.1,2.11881]
[1748865229476,0.00604558,2482.2,2482.1,6.58335865]
[1748865229970,0.00604558,2482.2,2482.1,7.78513901]
[1748865231177,0.00604558,2482.2,2482.1,8.19142144]
[1748865231474,0.00604558,2482.2,2482.1,8.19264741]
[1748865233379,0.00604558,2482.2,2482.1,6.58458462]
[1748865234773,0.00604558,2482.2,2482.1,8.19169827]
[1748865235280,0.00604558,2482.2,2482.1,6.93372365]
[1748865235481,0.00604558,2482.2,2482.1,8.19280078]
[1748865236169,0.00604558,2482.2,2482.1,12.26780078]
[1748865236878,0.00604558,2482.2,2482.1,8.19280078]
[1748865237081,0.00604558,2482.2,2482.1,12.26780078]
[1748865238680,0.00604558,2482.2,2482.1,8.19280078]
[1748865238879,0.81142558,2482.2,2482.1,5.27228713]
[1748865239386,0.00604558,2482.2,2482.1,5.27239747]
[1748865239877,0.64414558,2482.2,2482.1,5.27239747]
[1748865240287,0.00604558,2482.2,2482.1,5.27239747]
[1748865240474,0.00604558,2482.2,2482.1,6.66159747]
[1748865240774,0.81142558,2482.2,2482.1,5.27239747]
[1748865240977,1.28724558,2482.2,2482.1,5.27239747]
[1748865241886,18.68504558,2482.2,2482.1,5.27268381]
[1748865242580,0.00604558,2482.2,2482.1,6.47812063]
[1748865242782,0.00604558,2482.2,2482.1,5.27268381]
[1748865242985,0.00604558,2482.2,2482.1,6.47812063]
[1748865243185,0.00604558,2482.2,2482.1,7.79462063]
[1748865243386,0.00604558,2482.2,2482.1,6.58918381]
[1748865243981,2.0231,2482.6,2482.5,0.80528]
[1748865244180,4.01291,2483.1,2483.0,0.80512]
[1748865244374,3.2078,2483.1,2483.0,0.80512]
[1748865244580,1.3818,2483.2,2483.1,0.80509]
[1748865244779,0.6958,2483.2,2483.1,0.80509]
[1748865244986,3.21384558,2483.4,2483.3,0.80502]
[1748865245180,21.89184558,2483.4,2483.3,0.80502]
[1748865245580,1.33334558,2483.4,2483.3,2.06401675]
[1748865245782,1.33334558,2483.4,2483.3,0.80502]
[1748865245783,20.01134558,2483.4,2483.3,0.80502]
[1748865245983,1.33334558,2483.4,2483.3,0.80502]
[1748865246285,1.33334558,2483.4,2483.3,2.06879712]
[1748865246676,1.33334558,2483.4,2483.3,0.80502]
[1748865246879,0.00604558,2483.4,2483.3,0.80502]
[1748865247088,0.00604558,2483.4,2483.3,2.19242]
[1748865248784,0.81103558,2483.4,2483.3,0.80502]
[1748865249095,0.00604558,2483.4,2483.3,0.80502]
[1748865252099,0.00604558,2483.4,2483.3,2.14152]
[1748865255486,0.00604558,2483.4,2483.3,0.80502]
[1748865256492,1.37134558,2483.4,2483.3,0.80502]
[1748865257193,0.00604558,2483.4,2483.3,0.80502]
[1748865258693,1.27884558,2483.4,2483.3,0.80502]
[1748865259199,0.80506,2483.2,2483.1,0.00604558]
[1748865259697,5.80506,2483.2,2483.1,0.00604558]
[1748865259896,7.07786,2483.2,2483.1,0.00604558]
[1748865260694,20.74886,2483.2,2483.1,0.00604558]
[1748865261393,25.74886,2483.2,2483.1,0.00604558]
[1748865263593,20.74886,2483.2,2483.1,0.00604558]
[1748865265190,25.74886,2483.2,2483.1,0.00604558]
[1748865265399,0.8052,2482.8,2482.7,0.80519]
[1748865266093,1.9913,2482.8,2482.7,0.80519]
[1748865266295,2.79649,2482.8,2482.7,0.80519]
[1748865266695,1.9913,2482.8,2482.7,0.80519]
[1748865267292,1.9913,2482.8,2482.7,2.0671059]
[1748865267493,1.9913,2482.8,2482.7,2.0670423]
[1748865267888,3.2078,2482.9,2482.8,0.80519]
[1748865268095,21.8788,2482.9,2482.8,0.80519]
[1748865269189,21.8788,2482.9,2482.8,2.06749936]
[1748865269395,3.2078,2482.9,2482.8,3.36699936]
[1748865269702,3.2078,2482.9,2482.8,2.0676072]
[1748865270602,4.01295,2482.9,2482.8,2.0676072]
[1748865270803,5.27115,2482.9,2482.8,2.0676072]
[1748865273102,5.27115,2482.9,2482.8,0.80519]
[1748865273293,5.27115,2482.9,2482.8,2.0688759]
[1748865273492,0.6612,2483.1,2483.0,0.80512]
[1748865273695,0.00604558,2483.4,2483.3,0.80502]
[1748865273904,18.67704558,2483.4,2483.3,0.80502]
[1748865274104,0.00604558,2483.4,2483.3,2.0684898]
[1748865277002,0.00604558,2483.4,2483.3,3.4308898]
[1748865277202,0.00604558,2483.4,2483.3,3.43036505]
[1748865278608,19.3008,2483.8,2483.7,0.80489]
[1748865279095,20.10566,2483.8,2483.7,0.80489]
[1748865279298,19.3008,2483.8,2483.7,0.80489]
[1748865279498,0.6318,2483.8,2483.7,0.80489]
[1748865279701,19.3008,2483.8,2483.7,2.06740798]
[1748865280107,0.6318,2483.8,2483.7,2.06740798]
[1748865280409,19.2998,2483.8,2483.7,2.06740798]
[1748865281003,19.2998,2483.8,2483.7,0.80489]
[1748865281208,19.2998,2483.8,2483.7,2.06623451]
[1748865282504,20.6641,2483.8,2483.7,2.06623451]
[1748865284103,1.9961,2483.8,2483.7,2.06623451]
[1748865284404,20.6621,2483.8,2483.7,2.06623451]
[1748865285104,20.6621,2483.8,2483.7,2.06550243]
[1748865285513,20.6621,2483.8,2483.7,0.80489]
[1748865286012,1.9961,2483.8,2483.7,0.80489]
[1748865286212,20.6611,2483.8,2483.7,0.80489]
[1748865286402,20.6611,2483.8,2483.7,4.01269]
[1748865287909,19.2968,2483.8,2483.7,4.01269]
[1748865289014,18.664,2483.8,2483.7,4.01269]
[1748865291417,19.9879,2483.8,2483.7,4.01269]
[1748865291617,20.79276,2483.8,2483.7,4.01269]
[1748865291815,19.9879,2483.8,2483.7,4.01269]
[1748865292116,20.79276,2483.8,2483.7,4.01269]
[1748865292317,19.9879,2483.8,2483.7,4.01269]
[1748865294120,1.45546558,2484.0,2483.9,0.80483]
[1748865294417,20.11746558,2484.0,2483.9,0.80483]
[1748865295011,1.45546558,2484.0,2483.9,0.80483]
[1748865295206,0.80486,2483.8,2483.7,4.01265]
[1748865295415,2.09246,2483.9,2483.8,0.80486]
[1748865297824,19.9486,2483.9,2483.8,0.80486]
[1748865298018,20.75343,2483.9,2483.8,0.80486]
[1748865298214,19.9486,2483.9,2483.8,0.80486]
[1748865298519,19.9486,2483.9,2483.8,2.06610125]
[1748865298714,19.9486,2483.9,2483.8,2.71280125]
[1748865300318,20.75343,2483.9,2483.8,2.71280125]
[1748865300921,19.9476,2483.9,2483.8,2.71391685]
[1748865302325,1.2876,2483.9,2483.8,2.71391685]
[1748865302528,1.45546558,2484.0,2483.9,0.80483]
[1748865302529,0.65064558,2484.0,2483.9,0.80483]
[1748865302729,19.31064558,2484.0,2483.9,2.06718685]
[1748865303225,20.11544558,2484.0,2483.9,2.06718685]
[1748865303425,21.40014558,2484.0,2483.9,2.06718685]
[1748865304622,20.59534558,2484.0,2483.9,2.06718685]
[1748865305821,1.93634558,2484.0,2483.9,2.06718685]
[1748865306027,0.00604558,2484.0,2483.9,3.27099635]
[1748865306319,0.00604558,2484.0,2483.9,4.95874897]
[1748865307623,4.6393,2484.4,2484.3,0.8047]
[1748865307926,22.658,2484.4,2484.3,3.27313439]
[1748865308424,22.658,2484.4,2484.3,5.20213439]
[1748865308626,22.658,2484.4,2484.3,3.94203439]
[1748865309017,4.0,2484.4,2484.3,3.94203439]
[1748865309218,22.658,2484.4,2484.3,3.94203439]
[1748865310324,22.657,2484.4,2484.3,3.94203439]
[1748865310525,22.657,2484.4,2484.3,4.08995685]
[1748865311527,22.66562334,2484.4,2484.3,4.09228226]
[1748865311727,22.66562334,2484.4,2484.3,7.30008226]
[1748865311728,4.00862334,2484.4,2484.3,7.30008226]
[1748865312627,4.00862334,2484.4,2484.3,8.5046975]